[Event "*** Titled Tuesday Blitz"]
[Site "Chess.com"]
[Date "2021.04.20"]
[Round "1"]
[White "Cptn2"]
[Black "Konek-Gorbunok"]
[Result "1-0"]
[WhiteElo "2606"]
[BlackElo "2303"]
[TimeControl "180+1"]
[EndTime "10:08:40 PDT"]
[Termination "Cptn2 won by resignation"]

1. e4 {[%clk 0:03:00.9]} 1... c5 {[%clk 0:02:59.6]} 2. Nf3 {[%clk 0:03:00.4]}
2... a6 {[%clk 0:02:59.8]} 3. c3 {[%clk 0:03:00.3]} 3... d6 {[%clk 0:02:59.6]}
4. Bd3 {[%clk 0:03:00.2]} 4... Nc6 {[%clk 0:02:58.6]} 5. Bc2 {[%clk 0:03:00.4]}
5... Nf6 {[%clk 0:02:58.8]} 6. h3 {[%clk 0:02:57.9]} 6... g6 {[%clk 0:02:58.2]}
7. O-O {[%clk 0:02:58]} 7... Bg7 {[%clk 0:02:58.3]} 8. d4 {[%clk 0:02:58]} 8...
cxd4 {[%clk 0:02:58.5]} 9. cxd4 {[%clk 0:02:58.9]} 9... O-O {[%clk 0:02:58.9]}
10. Nc3 {[%clk 0:02:58.4]} 10... b5 {[%clk 0:02:59]} 11. a3 {[%clk 0:02:57.9]}
11... Bb7 {[%clk 0:02:59.2]} 12. Qe2 {[%clk 0:02:56.6]} 12... Rc8 {[%clk
0:02:59.3]} 13. Bg5 {[%clk 0:02:50.4]} 13... Na5 {[%clk 0:02:57.8]} 14. Rac1
{[%clk 0:02:46.1]} 14... Nc4 {[%clk 0:02:57.2]} 15. Bb1 {[%clk 0:02:45.2]} 15...
Re8 {[%clk 0:02:52.2]} 16. Nd2 {[%clk 0:02:23.6]} 16... Nxb2 {[%clk 0:02:38.7]}
17. Ba2 {[%clk 0:02:07.6]} 17... Qa5 {[%clk 0:02:24.2]} 18. Ncb1 {[%clk
0:01:22.8]} 18... Nc4 {[%clk 0:01:54.6]} 19. e5 {[%clk 0:01:13.4]} 19... dxe5
{[%clk 0:01:30]} 20. dxe5 {[%clk 0:01:14.3]} 20... Nd5 {[%clk 0:01:30]} 21. Nxc4
{[%clk 0:01:13.4]} 21... bxc4 {[%clk 0:01:27.5]} 22. Bxc4 {[%clk 0:01:14.3]}
22... Nb6 {[%clk 0:01:11.2]} 23. Nd2 {[%clk 0:00:45.4]} 23... Qxe5 {[%clk
0:01:05.5]} 24. Qxe5 {[%clk 0:00:44]} 24... Bxe5 {[%clk 0:01:04.6]} 25. Ba2
{[%clk 0:00:44.9]} 25... e6 {[%clk 0:00:53.3]} 26. Rb1 {[%clk 0:00:43.1]} 26...
Bc7 {[%clk 0:00:27.9]} 27. Be3 {[%clk 0:00:42.1]} 27... Bd5 {[%clk 0:00:25.8]}
28. Bxb6 {[%clk 0:00:33]} 28... Bxa2 {[%clk 0:00:23.9]} 29. Rb2 {[%clk
0:00:32.7]} 29... Bxb6 {[%clk 0:00:21.9]} 30. Rxb6 {[%clk 0:00:33.6]} 30... a5
{[%clk 0:00:18.3]} 31. Ne4 {[%clk 0:00:33.6]} 31... Red8 {[%clk 0:00:14.8]} 32.
h4 {[%clk 0:00:23.6]} 32... a4 {[%clk 0:00:14.4]} 33. h5 {[%clk 0:00:23.6]}
33... gxh5 {[%clk 0:00:12.4]} 34. f3 {[%clk 0:00:18]} 34... Bb3 {[%clk
0:00:11.5]} 35. Kf2 {[%clk 0:00:16.7]} 35... Rc2+ {[%clk 0:00:09.5]} 36. Kg3
{[%clk 0:00:17.2]} 36... Kg7 {[%clk 0:00:07.1]} 37. Rh1 {[%clk 0:00:17.2]} 37...
Rd5 {[%clk 0:00:05.9]} 38. Rh4 {[%clk 0:00:15.6]} 38... Rf5 {[%clk 0:00:05.7]}
39. Rb7 {[%clk 0:00:15]} 39... Bd5 {[%clk 0:00:05.3]} 40. Nd6 {[%clk 0:00:14.8]}
40... Bxb7 {[%clk 0:00:04.9]} 41. Nxf5+ {[%clk 0:00:14.5]} 41... exf5 {[%clk
0:00:05.6]} 42. Rxa4 {[%clk 0:00:15.4]} 42... Bc6 {[%clk 0:00:05.1]} 43. Ra7
{[%clk 0:00:16.3]} 43... Rc3 {[%clk 0:00:05.1]} 44. Kf4 {[%clk 0:00:16.6]} 44...
Bd5 {[%clk 0:00:05.5]} 45. Kxf5 {[%clk 0:00:16.3]} 45... Be6+ {[%clk 0:00:06.4]}
46. Kg5 {[%clk 0:00:17]} 46... Rc2 {[%clk 0:00:06.6]} 47. g3 {[%clk 0:00:17.5]}
47... Ra2 {[%clk 0:00:07.5]} 48. Kxh5 {[%clk 0:00:17.6]} 48... Rb2 {[%clk
0:00:07.3]} 49. g4 {[%clk 0:00:18]} 49... Rb3 {[%clk 0:00:08.2]} 50. f4 {[%clk
0:00:18.2]} 50... Rh3+ {[%clk 0:00:08.3]} 51. Kg5 {[%clk 0:00:18.6]} 51... Rg3
{[%clk 0:00:09.2]} 52. f5 {[%clk 0:00:18.7]} 52... h6+ {[%clk 0:00:08.9]} 53.
Kf4 {[%clk 0:00:19]} 53... Rb3 {[%clk 0:00:07.3]} 54. fxe6 {[%clk 0:00:19.2]}
54... Kg6 {[%clk 0:00:07.8]} 55. exf7 {[%clk 0:00:19.3]} 55... Kg7 {[%clk
0:00:06]} 56. a4 {[%clk 0:00:18.6]} 56... Rb4+ {[%clk 0:00:03.9]} 57. Kg3 {[%clk
0:00:19.2]} 57... Kf8 {[%clk 0:00:02.7]} 58. Kh4 {[%clk 0:00:19.6]} 58... Rd4
{[%clk 0:00:01.9]} 59. Kh5 {[%clk 0:00:20.2]} 59... Rd6 {[%clk 0:00:02.8]} 60.
a5 {[%clk 0:00:20.3]} 60... Re6 {[%clk 0:00:02.7]} 61. Rb7 {[%clk 0:00:20.6]}
61... Rd6 {[%clk 0:00:02.8]} 62. Rb6 {[%clk 0:00:21]} 62... Rd7 {[%clk
0:00:02.5]} 63. Kxh6 {[%clk 0:00:21.1]} 63... Rxf7 {[%clk 0:00:02.5]} 64. g5
{[%clk 0:00:22]} 64... Ra7 {[%clk 0:00:02.3]} 65. a6 {[%clk 0:00:22]} 65... Kf7
{[%clk 0:00:02.4]} 66. Rb7+ {[%clk 0:00:22]} 1-0

[Event "*** Titled Tuesday Blitz"]
[Site "Chess.com"]
[Date "2021.04.20"]
[Round "1"]
[White "PowerThinking2650"]
[Black "Rsnr"]
[Result "0-1"]
[WhiteElo "2420"]
[BlackElo "2782"]
[TimeControl "180+1"]
[EndTime "10:08:45 PDT"]
[Termination "Rsnr won on time"]

1. e4 {[%clk 0:02:52.2]} 1... c6 {[%clk 0:02:59.9]} 2. d4 {[%clk 0:02:51.7]}
2... d5 {[%clk 0:03:00.8]} 3. Nc3 {[%clk 0:02:51.3]} 3... dxe4 {[%clk
0:03:00.2]} 4. Nxe4 {[%clk 0:02:52.2]} 4... Bf5 {[%clk 0:03:00.6]} 5. Ng3 {[%clk
0:02:52.2]} 5... Bg6 {[%clk 0:03:01.1]} 6. h4 {[%clk 0:02:52.4]} 6... h6 {[%clk
0:03:01]} 7. Nf3 {[%clk 0:02:53]} 7... e6 {[%clk 0:03:00.9]} 8. Ne5 {[%clk
0:02:47.1]} 8... Bh7 {[%clk 0:03:01.1]} 9. Bc4 {[%clk 0:02:23.5]} 9... Nf6
{[%clk 0:02:59.4]} 10. c3 {[%clk 0:02:22.7]} 10... Nbd7 {[%clk 0:02:54.7]} 11.
f4 {[%clk 0:02:21.4]} 11... c5 {[%clk 0:02:53.4]} 12. Be3 {[%clk 0:02:03.2]}
12... cxd4 {[%clk 0:02:42.8]} 13. Bxd4 {[%clk 0:02:02.7]} 13... a6 {[%clk
0:02:41.1]} 14. Qe2 {[%clk 0:01:58.3]} 14... Nxe5 {[%clk 0:02:37]} 15. Bxe5
{[%clk 0:01:49.5]} 15... Be7 {[%clk 0:02:26.1]} 16. Rd1 {[%clk 0:01:30.3]} 16...
Qa5 {[%clk 0:02:21.8]} 17. Bxf6 {[%clk 0:00:40.4]} 17... Bxf6 {[%clk 0:01:53.1]}
18. Ne4 {[%clk 0:00:32.9]} 18... Be7 {[%clk 0:01:49.7]} 19. Nd6+ {[%clk
0:00:20.1]} 19... Bxd6 {[%clk 0:01:49.4]} 20. Rxd6 {[%clk 0:00:20.8]} 20... O-O
{[%clk 0:01:45.9]} 21. Qe5 {[%clk 0:00:17.4]} 21... Qxe5+ {[%clk 0:01:39.7]} 22.
fxe5 {[%clk 0:00:18.3]} 22... Rac8 {[%clk 0:01:40.6]} 23. Bb3 {[%clk 0:00:16]}
23... Rc5 {[%clk 0:01:40.9]} 24. O-O {[%clk 0:00:16]} 24... Rxe5 {[%clk
0:01:40.8]} 25. Rd7 {[%clk 0:00:16.4]} 25... b5 {[%clk 0:01:40.8]} 26. a3 {[%clk
0:00:15.9]} 26... Bf5 {[%clk 0:01:35.4]} 27. Rf2 {[%clk 0:00:15.1]} 27... Re4
{[%clk 0:01:27.9]} 28. Ra7 {[%clk 0:00:14.7]} 28... Rxh4 {[%clk 0:01:24.8]} 29.
Rxa6 {[%clk 0:00:14.2]} 29... Rb8 {[%clk 0:01:25.2]} 30. Ra7 {[%clk 0:00:14]}
30... Re4 {[%clk 0:01:24.1]} 31. Rxf5 {[%clk 0:00:13.2]} 31... exf5 {[%clk
0:01:22.9]} 32. Rxf7 {[%clk 0:00:13.8]} 32... Kh8 {[%clk 0:01:15]} 33. Rxf5
{[%clk 0:00:13.4]} 33... Re2 {[%clk 0:01:15.7]} 34. Rf2 {[%clk 0:00:13.4]} 34...
Rbe8 {[%clk 0:01:14.4]} 35. Bd5 {[%clk 0:00:12.6]} 35... Re1+ {[%clk 0:01:06.2]}
36. Kh2 {[%clk 0:00:12.4]} 36... R8e2 {[%clk 0:01:06.4]} 37. Kg3 {[%clk
0:00:11.3]} 37... Rxf2 {[%clk 0:01:06]} 38. Kxf2 {[%clk 0:00:11.4]} 38... Rb1
{[%clk 0:01:06.9]} 39. b4 {[%clk 0:00:10.9]} 39... Rc1 {[%clk 0:01:04.6]} 40.
Bc6 {[%clk 0:00:10.5]} 40... Rc2+ {[%clk 0:01:04.4]} 41. Kg1 {[%clk 0:00:09.7]}
41... Rxc3 {[%clk 0:01:05.2]} 42. Bxb5 {[%clk 0:00:10]} 42... Rxa3 {[%clk
0:01:05.9]} 43. Bc6 {[%clk 0:00:10.6]} 43... Rb3 {[%clk 0:01:05.8]} 44. b5
{[%clk 0:00:11.1]} 44... g5 {[%clk 0:01:05.2]} 45. Kf2 {[%clk 0:00:11.4]} 45...
Kg7 {[%clk 0:01:05.4]} 46. Ke2 {[%clk 0:00:11.9]} 46... Kf6 {[%clk 0:01:05.7]}
47. Kd2 {[%clk 0:00:12.5]} 47... Ke5 {[%clk 0:01:06.2]} 48. Kc2 {[%clk
0:00:13.2]} 48... Rb4 {[%clk 0:00:56.9]} 49. Kc3 {[%clk 0:00:11.8]} 49... Rb1
{[%clk 0:00:55.4]} 50. Kc4 {[%clk 0:00:11.4]} 50... Kd6 {[%clk 0:00:54.9]} 51.
Kd4 {[%clk 0:00:11.4]} 51... Rb4+ {[%clk 0:00:54.5]} 52. Kc3 {[%clk 0:00:10.6]}
52... Kc5 {[%clk 0:00:54.8]} 53. Kd3 {[%clk 0:00:09.3]} 53... h5 {[%clk
0:00:54.8]} 54. Ke3 {[%clk 0:00:08.9]} 54... h4 {[%clk 0:00:55.3]} 55. Kf3
{[%clk 0:00:08.5]} 55... Rf4+ {[%clk 0:00:55.4]} 56. Ke3 {[%clk 0:00:08.6]}
56... Rf6 {[%clk 0:00:55.7]} 57. Ke2 {[%clk 0:00:07.8]} 57... Kd4 {[%clk
0:00:55]} 58. Bf3 {[%clk 0:00:06.2]} 58... Kc4 {[%clk 0:00:45.6]} 59. Bc6 {[%clk
0:00:06.1]} 59... g4 {[%clk 0:00:45.8]} 60. Ke3 {[%clk 0:00:04.8]} 60... Kc5
{[%clk 0:00:34.1]} 61. Bd7 {[%clk 0:00:04.8]} 61... g3 {[%clk 0:00:34.1]} 62.
Bc6 {[%clk 0:00:04.9]} 62... Rf2 {[%clk 0:00:34.1]} 63. Bd7 {[%clk 0:00:04.3]}
63... Kd6 {[%clk 0:00:31.3]} 64. Bc6 {[%clk 0:00:04.1]} 64... Kc5 {[%clk
0:00:30.8]} 65. Kd3 {[%clk 0:00:03.6]} 65... Rf6 {[%clk 0:00:19.9]} 66. Ke3
{[%clk 0:00:03.6]} 66... Kd6 {[%clk 0:00:20.2]} 67. Ke4 {[%clk 0:00:02.7]} 67...
Rf2 {[%clk 0:00:19.5]} 68. Ke3 {[%clk 0:00:03]} 68... Ke5 {[%clk 0:00:20]} 69.
b6 {[%clk 0:00:02.6]} 69... Rb2 {[%clk 0:00:20.6]} 70. b7 {[%clk 0:00:02.7]}
70... Rb3+ {[%clk 0:00:21.3]} 71. Ke2 {[%clk 0:00:02.4]} 71... Kf4 {[%clk
0:00:17.7]} 72. Kd2 {[%clk 0:00:02]} 72... Rb6 {[%clk 0:00:16.3]} 73. Bf3 {[%clk
0:00:01.3]} 73... h3 {[%clk 0:00:16]} 0-1

[Event "*** Titled Tuesday Blitz"]
[Site "Chess.com"]
[Date "2021.04.20"]
[Round "1"]
[White "Pertinhez76"]
[Black "HackingKid98"]
[Result "1-0"]
[WhiteElo "2042"]
[BlackElo "2468"]
[TimeControl "180+1"]
[EndTime "10:08:47 PDT"]
[Termination "Pertinhez76 won by checkmate"]

1. d4 {[%clk 0:02:59.7]} 1... Nf6 {[%clk 0:02:58.4]} 2. Bf4 {[%clk 0:02:59.6]}
2... c5 {[%clk 0:02:58]} 3. c3 {[%clk 0:02:54.4]} 3... Qb6 {[%clk 0:02:56.5]} 4.
Qb3 {[%clk 0:02:47.6]} 4... Qxb3 {[%clk 0:02:45.5]} 5. axb3 {[%clk 0:02:48.5]}
5... cxd4 {[%clk 0:02:46.4]} 6. cxd4 {[%clk 0:02:48.2]} 6... Nc6 {[%clk
0:02:46]} 7. e3 {[%clk 0:02:47.2]} 7... e6 {[%clk 0:02:45.6]} 8. Nc3 {[%clk
0:02:44.3]} 8... Bb4 {[%clk 0:02:37.7]} 9. Ra4 {[%clk 0:02:40.9]} 9... Nd5
{[%clk 0:02:33.6]} 10. Ne2 {[%clk 0:02:38.3]} 10... O-O {[%clk 0:02:24.7]} 11.
Bg3 {[%clk 0:02:32]} 11... b5 {[%clk 0:02:13.1]} 12. Ra1 {[%clk 0:02:25]} 12...
Bb7 {[%clk 0:02:12.5]} 13. e4 {[%clk 0:02:11.9]} 13... Nf6 {[%clk 0:02:04.2]}
14. f3 {[%clk 0:02:11.9]} 14... Rfc8 {[%clk 0:01:57.9]} 15. Kd2 {[%clk
0:02:08.9]} 15... d5 {[%clk 0:01:52.8]} 16. e5 {[%clk 0:01:57.4]} 16... Nd7
{[%clk 0:01:51]} 17. Bf2 {[%clk 0:01:50.5]} 17... a6 {[%clk 0:01:12.9]} 18. Nf4
{[%clk 0:01:48.5]} 18... Na5 {[%clk 0:00:54]} 19. Kc2 {[%clk 0:01:42.4]} 19...
Nb8 {[%clk 0:00:53.1]} 20. Nd3 {[%clk 0:01:41]} 20... Nbc6 {[%clk 0:00:51.8]}
21. Nc1 {[%clk 0:01:00.4]} 21... Bf8 {[%clk 0:00:48.1]} 22. Kd2 {[%clk
0:00:57.9]} 22... h6 {[%clk 0:00:40.9]} 23. Bd3 {[%clk 0:00:57]} 23... Rc7
{[%clk 0:00:39]} 24. g4 {[%clk 0:00:47.7]} 24... Rac8 {[%clk 0:00:38.5]} 25. h4
{[%clk 0:00:48.4]} 25... g6 {[%clk 0:00:22.9]} 26. Be3 {[%clk 0:00:47.4]} 26...
Kg7 {[%clk 0:00:14.4]} 27. f4 {[%clk 0:00:44.7]} 27... Kg8 {[%clk 0:00:14]} 28.
Rg1 {[%clk 0:00:44.5]} 28... Kg7 {[%clk 0:00:13]} 29. f5 {[%clk 0:00:44.8]}
29... Be7 {[%clk 0:00:12.7]} 30. f6+ {[%clk 0:00:44]} 30... Bxf6 {[%clk
0:00:13]} 31. exf6+ {[%clk 0:00:44.9]} 31... Kxf6 {[%clk 0:00:13.9]} 32. Bxh6
{[%clk 0:00:45.1]} 32... Ke7 {[%clk 0:00:13.9]} 33. Bf4 {[%clk 0:00:43.5]} 33...
Kd7 {[%clk 0:00:12.9]} 34. Bxc7 {[%clk 0:00:43.2]} 34... Rxc7 {[%clk 0:00:13.8]}
35. Rf1 {[%clk 0:00:43.2]} 35... Ke7 {[%clk 0:00:12.8]} 36. g5 {[%clk
0:00:42.2]} 36... Nxd4 {[%clk 0:00:12.4]} 37. Rxa5 {[%clk 0:00:39.9]} 37... Rc8
{[%clk 0:00:10.1]} 38. Ra1 {[%clk 0:00:35.2]} 38... Rh8 {[%clk 0:00:09.4]} 39.
Rf4 {[%clk 0:00:32.3]} 39... Nc6 {[%clk 0:00:08.7]} 40. N1e2 {[%clk 0:00:29.7]}
40... Ne5 {[%clk 0:00:08.7]} 41. Nd4 {[%clk 0:00:27.6]} 41... Kd7 {[%clk
0:00:07.4]} 42. b4 {[%clk 0:00:21.4]} 42... Kd6 {[%clk 0:00:07.2]} 43. Nb3
{[%clk 0:00:21.3]} 43... Ke7 {[%clk 0:00:07.2]} 44. Nc5 {[%clk 0:00:21.3]} 44...
Bc8 {[%clk 0:00:07.3]} 45. Ne2 {[%clk 0:00:20.8]} 45... Kd6 {[%clk 0:00:07]} 46.
Nd4 {[%clk 0:00:20.7]} 46... a5 {[%clk 0:00:07]} 47. bxa5 {[%clk 0:00:18.6]}
47... Nxd3 {[%clk 0:00:07.3]} 48. Nxd3 {[%clk 0:00:17.2]} 48... e5 {[%clk
0:00:08.2]} 49. Rf6+ {[%clk 0:00:17.4]} 49... Be6 {[%clk 0:00:07.2]} 50. Nxe5
{[%clk 0:00:18.3]} 50... Kxe5 {[%clk 0:00:06.7]} 51. Nxb5 {[%clk 0:00:18.7]}
51... Rxh4 {[%clk 0:00:05.1]} 52. a6 {[%clk 0:00:18.6]} 52... Rh2+ {[%clk
0:00:04.8]} 53. Kc3 {[%clk 0:00:18.4]} 53... Bc8 {[%clk 0:00:05.7]} 54. a7
{[%clk 0:00:18.3]} 54... Bb7 {[%clk 0:00:05.8]} 55. Rxf7 {[%clk 0:00:18.8]}
55... d4+ {[%clk 0:00:05]} 56. Kb3 {[%clk 0:00:17.9]} 56... Bd5+ {[%clk
0:00:04.7]} 57. Ka3 {[%clk 0:00:18]} 57... Rh3+ {[%clk 0:00:04.6]} 58. Ka4
{[%clk 0:00:17.5]} 58... Rh4 {[%clk 0:00:04.2]} 59. Re7+ {[%clk 0:00:17.2]}
59... Kf5 {[%clk 0:00:03.8]} 60. Rd7 {[%clk 0:00:16]} 60... d3+ {[%clk
0:00:04.7]} 61. Ka5 {[%clk 0:00:15.5]} 61... Bc6 {[%clk 0:00:05.6]} 62. Nd4+
{[%clk 0:00:11.9]} 62... Ke5 {[%clk 0:00:03.9]} 63. Nxc6+ {[%clk 0:00:11.7]}
63... Ke6 {[%clk 0:00:04.4]} 64. Rxd3 {[%clk 0:00:12.2]} 64... Rh5 {[%clk
0:00:03.3]} 65. b4 {[%clk 0:00:12]} 65... Rxg5+ {[%clk 0:00:03.3]} 66. b5 {[%clk
0:00:12.9]} 66... Rg2 {[%clk 0:00:03.1]} 67. Kb6 {[%clk 0:00:13.1]} 67... Kf6
{[%clk 0:00:03.5]} 68. a8=Q {[%clk 0:00:13.5]} 68... Kg5 {[%clk 0:00:03.8]} 69.
Qd8+ {[%clk 0:00:13.5]} 69... Kh6 {[%clk 0:00:03.7]} 70. Rh1+ {[%clk 0:00:14.1]}
70... Kg7 {[%clk 0:00:03.6]} 71. Rd7# {[%clk 0:00:14.6]} 1-0

[Event "*** Titled Tuesday Blitz"]
[Site "Chess.com"]
[Date "2021.04.20"]
[Round "1"]
[White "Varinius"]
[Black "Volodar_Murzin"]
[Result "1/2-1/2"]
[WhiteElo "2405"]
[BlackElo "2710"]
[TimeControl "180+1"]
[EndTime "10:08:53 PDT"]
[Termination "Game drawn by repetition"]

1. d4 {[%clk 0:02:55.7]} 1... d5 {[%clk 0:02:57]} 2. Nf3 {[%clk 0:02:55.2]} 2...
Nf6 {[%clk 0:02:53.3]} 3. c4 {[%clk 0:02:54.6]} 3... c6 {[%clk 0:02:53.2]} 4.
Nc3 {[%clk 0:02:53.3]} 4... e6 {[%clk 0:02:35.3]} 5. g3 {[%clk 0:02:50.4]} 5...
Nbd7 {[%clk 0:02:33.7]} 6. Bg2 {[%clk 0:02:51.3]} 6... Bd6 {[%clk 0:02:32.3]} 7.
O-O {[%clk 0:02:51.4]} 7... O-O {[%clk 0:02:31.2]} 8. Nd2 {[%clk 0:02:52]} 8...
Re8 {[%clk 0:01:59.5]} 9. e4 {[%clk 0:02:51.6]} 9... dxe4 {[%clk 0:01:57.4]} 10.
Ndxe4 {[%clk 0:02:52.5]} 10... Bf8 {[%clk 0:01:53.6]} 11. Bf4 {[%clk 0:02:31]}
11... Nxe4 {[%clk 0:01:41.4]} 12. Nxe4 {[%clk 0:02:30.4]} 12... Nf6 {[%clk
0:01:41.1]} 13. Nc3 {[%clk 0:02:07.6]} 13... Bd6 {[%clk 0:01:33.1]} 14. Qd2
{[%clk 0:02:06]} 14... Bxf4 {[%clk 0:01:12.6]} 15. Qxf4 {[%clk 0:02:06.9]} 15...
Qb6 {[%clk 0:01:12.4]} 16. Rab1 {[%clk 0:01:56.5]} 16... Qb4 {[%clk 0:01:06.7]}
17. Rfc1 {[%clk 0:01:30.5]} 17... Rd8 {[%clk 0:00:42.2]} 18. b3 {[%clk
0:01:15.7]} 18... Qd6 {[%clk 0:00:36.9]} 19. Qe3 {[%clk 0:01:05.6]} 19... Ng4
{[%clk 0:00:16.9]} 20. Qe2 {[%clk 0:00:50.2]} 20... Nf6 {[%clk 0:00:09.9]} 21.
Rd1 {[%clk 0:00:47]} 21... Bd7 {[%clk 0:00:09.7]} 22. Rd2 {[%clk 0:00:36.7]}
22... Be8 {[%clk 0:00:09.2]} 23. Rbd1 {[%clk 0:00:37.3]} 23... Rd7 {[%clk
0:00:09.1]} 24. Na4 {[%clk 0:00:24]} 24... Rad8 {[%clk 0:00:07.3]} 25. Nc5
{[%clk 0:00:22.6]} 25... Re7 {[%clk 0:00:07.6]} 26. Qe5 {[%clk 0:00:20.5]} 26...
b6 {[%clk 0:00:05.2]} 27. Ne4 {[%clk 0:00:18.3]} 27... Nxe4 {[%clk 0:00:04.2]}
28. Bxe4 {[%clk 0:00:19.2]} 28... Qxe5 {[%clk 0:00:03.5]} 29. dxe5 {[%clk
0:00:20.1]} 29... Rxd2 {[%clk 0:00:02.4]} 30. Rxd2 {[%clk 0:00:21]} 30... Rd7
{[%clk 0:00:03]} 31. Rd6 {[%clk 0:00:07.7]} 31... Rxd6 {[%clk 0:00:03.2]} 32.
exd6 {[%clk 0:00:08.6]} 32... Bd7 {[%clk 0:00:03.5]} 33. b4 {[%clk 0:00:08.3]}
33... f5 {[%clk 0:00:03.8]} 34. Bf3 {[%clk 0:00:08.3]} 34... c5 {[%clk
0:00:04.4]} 35. b5 {[%clk 0:00:08.5]} 35... Kf7 {[%clk 0:00:04]} 36. Bc6 {[%clk
0:00:07.1]} 36... Ke8 {[%clk 0:00:04.4]} 37. f4 {[%clk 0:00:07.1]} 37... Kd8
{[%clk 0:00:04.2]} 38. Kf2 {[%clk 0:00:07.3]} 38... Be8 {[%clk 0:00:04.5]} 39.
Ke3 {[%clk 0:00:07.3]} 39... Bf7 {[%clk 0:00:04.6]} 40. a3 {[%clk 0:00:06]}
40... Bh5 {[%clk 0:00:04.5]} 41. h3 {[%clk 0:00:05.6]} 41... Bd1 {[%clk
0:00:04.3]} 42. Kd3 {[%clk 0:00:04.5]} 42... Bb3 {[%clk 0:00:04]} 43. Kc3 {[%clk
0:00:04]} 43... Bd1 {[%clk 0:00:03.6]} 44. Kd2 {[%clk 0:00:04.1]} 44... Bh5
{[%clk 0:00:03.3]} 45. Ke3 {[%clk 0:00:04.5]} 45... Bf7 {[%clk 0:00:03.3]} 46.
g4 {[%clk 0:00:04.3]} 46... g6 {[%clk 0:00:03.4]} 47. g5 {[%clk 0:00:04.3]}
47... Be8 {[%clk 0:00:03.6]} 48. h4 {[%clk 0:00:04.7]} 48... Bd7 {[%clk
0:00:03.7]} 49. Kd3 {[%clk 0:00:04.8]} 49... Bc8 {[%clk 0:00:03.9]} 50. Kc3
{[%clk 0:00:04.7]} 50... Bd7 {[%clk 0:00:02.7]} 51. a4 {[%clk 0:00:05.2]} 51...
Be8 {[%clk 0:00:03]} 52. Kb3 {[%clk 0:00:04.6]} 52... Bf7 {[%clk 0:00:03]} 53.
a5 {[%clk 0:00:04.9]} 53... Be8 {[%clk 0:00:03.1]} 54. Ka4 {[%clk 0:00:05.2]}
54... Bd7 {[%clk 0:00:02.9]} 55. axb6 {[%clk 0:00:03.7]} 55... axb6 {[%clk
0:00:03.8]} 56. Kb3 {[%clk 0:00:04.3]} 56... Kc8 {[%clk 0:00:04]} 57. Kc3 {[%clk
0:00:04.5]} 57... Kd8 {[%clk 0:00:04.2]} 58. Kd3 {[%clk 0:00:05]} 58... Be8
{[%clk 0:00:04.4]} 59. Ke3 {[%clk 0:00:05.2]} 59... Bd7 {[%clk 0:00:04.5]} 60.
Kf3 {[%clk 0:00:05]} 60... Be8 {[%clk 0:00:04.7]} 61. Kg3 {[%clk 0:00:05.5]}
61... Bd7 {[%clk 0:00:04.9]} 62. h5 {[%clk 0:00:06.1]} 62... Be8 {[%clk
0:00:04.7]} 63. h6 {[%clk 0:00:06.4]} 63... Bd7 {[%clk 0:00:05]} 64. Kf3 {[%clk
0:00:06.9]} 64... Be8 {[%clk 0:00:05]} 65. Ke3 {[%clk 0:00:07.5]} 65... Bd7
{[%clk 0:00:05.4]} 66. Kd3 {[%clk 0:00:08.1]} 66... Ke8 {[%clk 0:00:05.7]} 67.
Ke3 {[%clk 0:00:06.6]} 67... Kd8 {[%clk 0:00:05.9]} 68. Kd3 {[%clk 0:00:07.1]}
68... Ke8 {[%clk 0:00:06]} 69. Kc3 {[%clk 0:00:07.7]} 69... Kd8 {[%clk
0:00:06.4]} 70. Kd3 {[%clk 0:00:07.7]} 1/2-1/2